{"text_format":"3","workbook":"xlsx","n_sheets":3,"sheets":["Articles","Envois","Publications"],"not_rendered":{"images":1,"defined_names":2},"read":"whole","date_system":"1900"}

{"sheet":"Articles","index":0,"n_rows":10,"n_cols":7,"rows_kept":10}
[{"$nulls":6}," "]
[]
[]
[null,"Titre","Statut","Nombre de mots","Type d’article","Résumé"]
[null,"Appel entre chien et loup","Terminé",{"v":5710,"d":"5,710"},"Nouvelle","Fiction avec léger suspense autour d’un détective tenu par un secret."]
[null,"Le papier peint bleu","Terminé",{"v":4525,"d":"4,525"},"Nouvelle","Histoire de la conception d’une maison inspirante."]
[null,"L’amour après l’amour","Terminé",438,"Billet de blog","Une histoire d’amour de la deuxième chance."]
[null,"Le vêtement qui tue","En cours",550,"Promotion","Support promotionnel pour un créateur de chemises."]
[null,"La mission légendaire","Terminé",520,"Billet de blog","Bref récit d’une mission spatiale."]
[null,"Trimestre classique","Terminé",290,"Billet de blog","Article sportif sur un match de finale."]

{"sheet":"Envois","index":1,"n_rows":11,"n_cols":8,"rows_kept":11}
[{"$nulls":7}," "]
[]
[]
[null,"Date \nEnvoyé","Titre de l’article","Nom de la publication","Statut","Date \nPublié","Paiement \nReçu"]
[null,{"$f":"TODAY()-21","v":"2019-09-27"},"Appel entre chien et loup","Young at Heart Magazine","Refusé"]
[null,{"$f":"TODAY()-9","v":"2019-10-09"},"Le papier peint bleu","Young at Heart Magazine","Accepté",{"$f":"TODAY()-4","v":"2019-10-14"},{"v":300,"d":"300.00 €"}]
[null,{"$f":"TODAY()-9","v":"2019-10-09"},"Le papier peint bleu","Digital Grounds","Accepté",{"$f":"TODAY()-2","v":"2019-10-16"},{"v":350,"d":"350.00 €"}]
[null,{"$f":"TODAY()-7","v":"2019-10-11"},"L’amour après l’amour","Get This!","Soumis"]
[null,{"$f":"TODAY()-6","v":"2019-10-12"},"La mission légendaire","Digital Grounds","Accepté",{"$f":"TODAY()-4","v":"2019-10-14"},{"v":150,"d":"150.00 €"}]
[null,{"$f":"TODAY()-6","v":"2019-10-12"},"Trimestre classique","Get This!","Accepté",{"$f":"TODAY()-3","v":"2019-10-15"},{"v":100,"d":"100.00 €"}]
[null,{"$f":"TODAY()-6","v":"2019-10-12"},"Trimestre classique","Digital Grounds","Soumis"]

{"sheet":"Publications","index":2,"n_rows":7,"n_cols":8,"rows_kept":7}
[{"$nulls":7}," "]
[]
[]
[null,"Nom","Type","Échéances","Total \nEnvois","Total\nAccepté","Total \nRecettes"]
[null,"Digital Grounds","Autres","Deux semaines après la demande",{"$f":"COUNTIF(Tableau_Envois[Nom de la publication],Tableau_Publications[[#This Row],[Nom]])","v":3},{"$f":"COUNTIFS(Tableau_Envois[Nom de la publication],Tableau_Publications[[#This Row],[Nom]],Tableau_Envois[Statut],\"Accepté\")","v":2},{"$f":"SUMIF(Tableau_Envois[Nom de la publication],Tableau_Publications[[#This Row],[Nom]],Tableau_Envois[Paiement \nReçu])","v":{"v":500,"d":"500.00 €"}}]
[null,"Young at Heart Magazine","SFWA","Chaque 3 du mois",{"$f":"COUNTIF(Tableau_Envois[Nom de la publication],Tableau_Publications[[#This Row],[Nom]])","v":2},{"$f":"COUNTIFS(Tableau_Envois[Nom de la publication],Tableau_Publications[[#This Row],[Nom]],Tableau_Envois[Statut],\"Accepté\")","v":1},{"$f":"SUMIF(Tableau_Envois[Nom de la publication],Tableau_Publications[[#This Row],[Nom]],Tableau_Envois[Paiement \nReçu])","v":{"v":300,"d":"300.00 €"}}]
[null,"Get This!","SFWA","Tous les lundis",{"$f":"COUNTIF(Tableau_Envois[Nom de la publication],Tableau_Publications[[#This Row],[Nom]])","v":2},{"$f":"COUNTIFS(Tableau_Envois[Nom de la publication],Tableau_Publications[[#This Row],[Nom]],Tableau_Envois[Statut],\"Accepté\")","v":1},{"$f":"SUMIF(Tableau_Envois[Nom de la publication],Tableau_Publications[[#This Row],[Nom]],Tableau_Envois[Paiement \nReçu])","v":{"v":100,"d":"100.00 €"}}]